[Event "ETCC Women 2013"]
[Site "Warsaw"]
[Date "2013.11.15"]
[Round "7"]
[White "Vojinovic, Jovana"]
[Black "Machlik, Monika"]
[Result "1-0"]
[ECO "A06"]
[WhiteElo "2352"]
[BlackElo "1936"]
[PlyCount "51"]
[EventDate "2013.??.??"]
[EventCountry "POL"]
[WhiteTeam "Serbia"]
[BlackTeam "Norway"]
[WhiteTeamCountry "SRB"]
[BlackTeamCountry "NOR"]
[TimeControl "40/5400+30:1800+30"]

1. Nf3 {[%emt 0:00:13]} d5 {[%emt 0:00:00]} 2. g3 {[%emt 0:00:06]} c6 {[%emt 0:
00:00]} 3. Bg2 {[%emt 0:00:11]} Nf6 {[%emt 0:00:07]} 4. c4 {[%emt 0:00:05]}
dxc4 {[%emt 0:02:46]} 5. O-O {[%emt 0:00:11]} Bf5 {[%emt 0:01:17]} 6. a4 {
[%emt 0:01:19]} e6 {[%emt 0:02:52]} 7. Na3 {[%emt 0:01:18]} Be7 {[%emt 0:01:14]
} 8. Nxc4 {[%emt 0:00:30]} O-O {[%emt 0:01:47]} 9. d3 {[%emt 0:03:42]} h6 {
[%emt 0:02:56]} 10. Qb3 {[%emt 0:01:23]} Qc8 {[%emt 0:08:30]} 11. Bf4 {[%emt 0:
05:41]} Rd8 {[%emt 0:08:24]} 12. Rfc1 {[%emt 0:02:55]} Na6 {[%emt 0:05:34]} 13.
Na5 {[%emt 0:08:45]} Bb4 {[%emt 0:21:40]} 14. Bd2 {[%emt 0:04:46]} Bxd2 {[%emt
0:05:09]} 15. Nxd2 {[%emt 0:00:12]} Rb8 {[%emt 0:01:50]} 16. Qa3 {[%emt 0:00:
05]} Nc7 {[%emt 0:05:49]} 17. b4 {[%emt 0:03:07]} Qd7 {[%emt 0:06:11]} 18. Ndb3
{[%emt 0:00:47]} Nce8 {[%emt 0:02:22]} 19. Nc5 {[%emt 0:00:55]} Qe7 {[%emt 0:
01:18]} 20. Ncxb7 {[%emt 0:00:51]} Rxb7 {[%emt 0:02:10]} 21. Nxc6 {[%emt 0:00:
07]} Qd7 {[%emt 0:02:57]} 22. Nxd8 {[%emt 0:00:12]} Rb8 {[%emt 0:00:43]} 23.
Nc6 {[%emt 0:00:08]} Rb6 {[%emt 0:00:59]} 24. b5 {[%emt 0:02:07]} Bh7 {[%emt 0:
02:01]} 25. a5 {[%emt 0:00:18]} Rxb5 {[%emt 0:00:38]} 26. Ne7+ {[%emt 0:00:06]}
1-0

[Event "ETCC Women 2013"]
[Site "Warsaw"]
[Date "2013.11.15"]
[Round "7"]
[White "Wisniowska, Klaudia"]
[Black "Mkrtchian, Lilit"]
[Result "0-1"]
[ECO "C18"]
[WhiteElo "2153"]
[BlackElo "2447"]
[PlyCount "70"]
[EventDate "2013.??.??"]
[EventCountry "POL"]
[WhiteTeam "Poland"]
[BlackTeam "Armenia"]
[WhiteTeamCountry "POL"]
[BlackTeamCountry "ARM"]
[TimeControl "40/5400+30:1800+30"]

1. e4 {[%emt 0:00:00]} e6 {[%emt 0:00:00]} 2. d4 {[%emt 0:00:00]} d5 {[%emt 0:
00:00]} 3. Nc3 {[%emt 0:00:00]} Bb4 {[%emt 0:00:00]} 4. e5 {[%emt 0:00:00]} c5
{[%emt 0:00:00]} 5. a3 {[%emt 0:00:00]} Bxc3+ {[%emt 0:00:19]} 6. bxc3 {[%emt
0:00:00]} Qa5 {[%emt 0:00:14]} 7. Bd2 {[%emt 0:00:37]} Qa4 {[%emt 0:00:07]} 8.
Qb1 {[%emt 0:00:12]} c4 {[%emt 0:00:41]} 9. h4 {[%emt 0:00:37]} Nc6 {[%emt 0:
00:15]} 10. Ne2 {[%emt 0:03:30]} Bd7 {[%emt 0:01:20]} 11. g3 {[%emt 0:04:03]}
O-O-O {[%emt 0:00:35]} 12. Bh3 {[%emt 0:01:00]} f6 {[%emt 0:04:24]} 13. O-O {
[%emt 0:18:42]} fxe5 {[%emt 0:05:46]} 14. dxe5 {[%emt 0:00:07]} Nxe5 {[%emt 0:
00:21]} 15. Nd4 {[%emt 0:01:22]} Nf6 {[%emt 0:00:28]} 16. f3 {[%emt 0:10:33]}
Rde8 {[%emt 0:28:04]} 17. Re1 {[%emt 0:04:19]} Ng6 {[%emt 0:00:45]} 18. Nxe6 {
[%emt 0:10:23]} Qa5 {[%emt 0:16:16]} 19. Kg2 {[%emt 0:09:50]} Ne4 {[%emt 0:04:
40]} 20. fxe4 {[%emt 0:06:21]} Bxe6 {[%emt 0:00:11]} 21. Qb4 {[%emt 0:05:31]}
Bxh3+ {[%emt 0:07:06]} 22. Kxh3 {[%emt 0:00:06]} Qc7 {[%emt 0:00:27]} 23. Be3 {
[%emt 0:13:21]} b6 {[%emt 0:07:41]} 24. exd5 {[%emt 0:01:08]} Qd7+ {[%emt 0:00:
54]} 25. Kh2 {[%emt 0:04:48]} Ne5 {[%emt 0:03:17]} 26. Bf2 {[%emt 0:04:08]}
Nf3+ {[%emt 0:00:35]} 27. Kg2 {[%emt 0:00:06]} Nxe1+ {[%emt 0:00:31]} 28. Rxe1
{[%emt 0:00:10]} Qxd5+ {[%emt 0:00:05]} 29. Kg1 {[%emt 0:00:44]} Rxe1+ {[%emt
0:00:09]} 30. Bxe1 {[%emt 0:00:12]} Re8 {[%emt 0:02:28]} 31. Bf2 {[%emt 0:00:
40]} Kb7 {[%emt 0:00:05]} 32. a4 {[%emt 0:00:22]} Re2 {[%emt 0:01:35]} 33. Qf8
{[%emt 0:00:29]} Rxc2 {[%emt 0:01:02]} 34. Qxg7+ {[%emt 0:00:10]} Ka6 {[%emt 0:
00:04]} 35. Qf6 {[%emt 0:00:36]} Rc1+ {[%emt 0:00:06]} 0-1

[Event "ETCC Women 2013"]
[Site "Warsaw"]
[Date "2013.11.15"]
[Round "7"]
[White "Worek, Joanna"]
[Black "Lagno, Kateryna"]
[Result "1/2-1/2"]
[ECO "E73"]
[WhiteElo "2336"]
[BlackElo "2542"]
[PlyCount "63"]
[EventDate "2013.??.??"]
[EventCountry "POL"]
[WhiteTeam "Poland"]
[BlackTeam "Ukraine"]
[WhiteTeamCountry "POL"]
[BlackTeamCountry "UKR"]
[TimeControl "40/5400+30:1800+30"]

1. d4 {[%emt 0:00:00]} Nf6 {[%emt 0:00:00]} 2. c4 {[%emt 0:00:00]} g6 {[%emt 0:
00:00]} 3. Nc3 {[%emt 0:00:01]} Bg7 {[%emt 0:00:03]} 4. e4 {[%emt 0:00:06]} d6
{[%emt 0:00:11]} 5. Be2 {[%emt 0:00:13]} O-O {[%emt 0:00:41]} 6. Bg5 {[%emt 0:
00:17]} c5 {[%emt 0:00:20]} 7. d5 {[%emt 0:01:14]} h6 {[%emt 0:00:31]} 8. Be3 {
[%emt 0:00:17]} e6 {[%emt 0:01:02]} 9. dxe6 {[%emt 0:03:35]} Bxe6 {[%emt 0:01:
17]} 10. Nf3 {[%emt 0:04:47]} Ng4 {[%emt 0:13:49]} 11. Bf4 {[%emt 0:03:19]} Qb6
{[%emt 0:11:10]} 12. Qc1 {[%emt 0:06:03]} Nc6 {[%emt 0:05:45]} 13. O-O {[%emt
0:02:25]} Rfd8 {[%emt 0:14:32]} 14. Rb1 {[%emt 0:12:41]} g5 {[%emt 0:14:48]}
15. Bg3 {[%emt 0:03:16]} Nge5 {[%emt 0:00:16]} 16. Nxe5 {[%emt 0:02:21]} dxe5 {
[%emt 0:00:07]} 17. Nd5 {[%emt 0:00:36]} Nd4 {[%emt 0:01:41]} 18. Bh5 {[%emt 0:
10:32]} Qd6 {[%emt 0:03:21]} 19. h4 {[%emt 0:02:47]} f6 {[%emt 0:04:57]} 20.
Qd1 {[%emt 0:04:48]} Qd7 {[%emt 0:02:39]} 21. f3 {[%emt 0:12:04]} Qd6 {[%emt 0:
01:20]} 22. Bf2 {[%emt 0:01:27]} Rab8 {[%emt 0:03:24]} 23. Bxd4 {[%emt 0:07:33]
} exd4 {[%emt 0:02:45]} 24. Qd3 {[%emt 0:04:36]} b5 {[%emt 0:02:51]} 25. b3 {
[%emt 0:00:59]} bxc4 {[%emt 0:05:09]} 26. bxc4 {[%emt 0:00:10]} Rxb1 {[%emt 0:
00:06]} 27. Rxb1 {[%emt 0:00:23]} Rb8 {[%emt 0:00:03]} 28. Ne7+ {[%emt 0:08:47]
} Kf8 {[%emt 0:02:13]} 29. Ng6+ {[%emt 0:00:57]} Kg8 {[%emt 0:00:10]} 30. Ne7+
{[%emt 0:00:06]} Kf8 {[%emt 0:00:05]} 31. Ng6+ {[%emt 0:00:04]} Kg8 {[%emt 0:
00:15]} 32. Ne7+ {[%emt 0:00:10]} 1/2-1/2

[Event "ETCC Women 2013"]
[Site "Warsaw"]
[Date "2013.11.15"]
[Round "7"]
[White "Yildiz, Betul Cemre"]
[Black "Chevannes, Sabrina L"]
[Result "1-0"]
[ECO "D11"]
[WhiteElo "2291"]
[BlackElo "2200"]
[PlyCount "125"]
[EventDate "2013.??.??"]
[EventCountry "POL"]
[WhiteTeam "Turkey"]
[BlackTeam "England"]
[WhiteTeamCountry "TUR"]
[BlackTeamCountry "ENG"]
[TimeControl "40/5400+30:1800+30"]

1. d4 {[%emt 0:00:00]} d5 {[%emt 0:00:00]} 2. c4 {[%emt 0:00:00]} c6 {[%emt 0:
00:00]} 3. Nf3 {[%emt 0:00:00]} Nf6 {[%emt 0:00:07]} 4. Qc2 {[%emt 0:01:49]}
dxc4 {[%emt 0:07:47]} 5. Qxc4 {[%emt 0:00:18]} Bf5 {[%emt 0:02:48]} 6. g3 {
[%emt 0:02:04]} Nbd7 {[%emt 0:03:31]} 7. Bg2 {[%emt 0:01:33]} Nb6 {[%emt 0:05:
42]} 8. Qb3 {[%emt 0:00:48]} Qd5 {[%emt 0:02:28]} 9. Nbd2 {[%emt 0:05:37]} Be6
{[%emt 0:18:54]} 10. Qd1 {[%emt 0:06:38]} g6 {[%emt 0:06:37]} 11. O-O {[%emt 0:
01:02]} Bg7 {[%emt 0:00:27]} 12. Nb3 {[%emt 0:02:25]} Qd8 {[%emt 0:07:15]} 13.
Nc5 {[%emt 0:04:38]} Bc8 {[%emt 0:00:44]} 14. e4 {[%emt 0:12:39]} Nfd7 {[%emt
0:04:49]} 15. Nd3 {[%emt 0:06:09]} O-O {[%emt 0:02:05]} 16. Qe2 {[%emt 0:00:52]
} Re8 {[%emt 0:01:51]} 17. Rd1 {[%emt 0:01:40]} Nf8 {[%emt 0:03:01]} 18. Nde1 {
[%emt 0:18:33]} Be6 {[%emt 0:05:50]} 19. Be3 {[%emt 0:03:03]} Qc7 {[%emt 0:12:
54]} 20. Qc2 {[%emt 0:01:32]} Qc8 {[%emt 0:03:07]} 21. Rac1 {[%emt 0:05:11]}
Bh3 {[%emt 0:02:28]} 22. Bh1 {[%emt 0:00:58]} h6 {[%emt 0:02:20]} 23. Qd2 {
[%emt 0:02:42]} Qe6 {[%emt 0:02:05]} 24. Bxh6 {[%emt 0:07:00]} Nc4 {[%emt 0:01:
17]} 25. Qf4 {[%emt 0:02:43]} g5 {[%emt 0:03:01]} 26. Qxg5 {[%emt 0:03:05]}
Qxh6 {[%emt 0:00:53]} 27. Qxh6 {[%emt 0:00:10]} Bxh6 {[%emt 0:00:03]} 28. Rxc4
{[%emt 0:00:05]} Ng6 {[%emt 0:00:45]} 29. Nd3 {[%emt 0:01:49]} Kh7 {[%emt 0:00:
29]} 30. Nfe5 {[%emt 0:02:00]} Nxe5 31. Nxe5 Bf4 {[%emt 0:01:11]} 32. Nf3 {
[%emt 0:02:56]} Bh6 {[%emt 0:00:30]} 33. Rc5 {[%emt 0:00:49]} Bg4 {[%emt 0:00:
33]} 34. Rd3 {[%emt 0:01:21]} f6 {[%emt 0:00:46]} 35. Bg2 {[%emt 0:02:15]} Rad8
{[%emt 0:00:08]} 36. h3 {[%emt 0:01:56]} Be6 {[%emt 0:00:11]} 37. b3 {[%emt 0:
00:41]} Bf7 {[%emt 0:00:11]} 38. Ne1 {[%emt 0:00:58]} Bf8 {[%emt 0:00:28]} 39.
Rc2 {[%emt 0:00:46]} Bg6 {[%emt 0:00:32]} 40. f4 {[%emt 0:00:00]} e6 {[%emt 0:
00:00]} 41. Rcd2 {[%emt 0:09:23]} f5 {[%emt 0:05:18]} 42. Nf3 {[%emt 0:02:39]}
Kh6 {[%emt 0:04:30]} 43. Ng5 {[%emt 0:06:13]} Bb4 {[%emt 0:01:57]} 44. Rd1 {
[%emt 0:01:45]} Re7 {[%emt 0:03:55]} 45. Kh2 {[%emt 0:02:21]} Bh5 {[%emt 0:01:
33]} 46. g4 {[%emt 0:00:51]} fxg4 {[%emt 0:02:28]} 47. hxg4 {[%emt 0:00:12]}
Bxg4 {[%emt 0:01:54]} 48. Rh1 {[%emt 0:00:08]} e5 {[%emt 0:03:38]} 49. Rg3 {
[%emt 0:04:02]} Bh5 {[%emt 0:03:04]} 50. dxe5 {[%emt 0:01:10]} Bc5 {[%emt 0:01:
43]} 51. e6 {[%emt 0:01:25]} Bf2 {[%emt 0:03:01]} 52. Bf3 {[%emt 0:04:56]} Bxf3
{[%emt 0:03:16]} 53. Rxf3 {[%emt 0:00:22]} Rd2 {[%emt 0:00:39]} 54. Kh3 {[%emt
0:00:46]} Kg6 {[%emt 0:00:50]} 55. Kg4 {[%emt 0:00:11]} Bc5 {[%emt 0:00:57]}
56. Rfh3 {[%emt 0:02:06]} Rg2+ {[%emt 0:00:10]} 57. Kf3 {[%emt 0:00:10]} Rf2+ {
[%emt 0:00:04]} 58. Kg3 {[%emt 0:00:04]} Bd4 {[%emt 0:01:35]} 59. Rh6+ {[%emt
0:00:45]} Kg7 {[%emt 0:00:02]} 60. Rh7+ {[%emt 0:00:49]} Kf8 {[%emt 0:00:07]}
61. Rh8+ {[%emt 0:00:36]} Kg7 {[%emt 0:01:03]} 62. R1h7+ {[%emt 0:00:19]} Kf6 {
[%emt 0:00:03]} 63. e5+ {[%emt 0:00:42]} 1-0

[Event "ETCC Women 2013"]
[Site "Warsaw"]
[Date "2013.11.15"]
[Round "7"]
[White "Zawadzka, Jolanta"]
[Black "Khurtsidze, Nino"]
[Result "1-0"]
[ECO "B43"]
[WhiteElo "2383"]
[BlackElo "2462"]
[PlyCount "123"]
[EventDate "2013.??.??"]
[EventCountry "POL"]
[WhiteTeam "Poland"]
[BlackTeam "Georgia"]
[WhiteTeamCountry "POL"]
[BlackTeamCountry "GEO"]
[TimeControl "40/5400+30:1800+30"]

1. e4 {[%emt 0:00:00]} c5 {[%emt 0:00:00]} 2. Nf3 {[%emt 0:00:00]} e6 {[%emt 0:
00:00]} 3. d4 {[%emt 0:00:00]} cxd4 {[%emt 0:00:00]} 4. Nxd4 {[%emt 0:00:00]}
a6 {[%emt 0:00:00]} 5. Nc3 {[%emt 0:00:00]} Qc7 {[%emt 0:00:10]} 6. Bd3 {[%emt
0:00:02]} Nf6 {[%emt 0:00:12]} 7. O-O {[%emt 0:00:20]} d6 {[%emt 0:00:42]} 8.
Qe2 {[%emt 0:00:27]} Be7 {[%emt 0:00:20]} 9. Kh1 {[%emt 0:00:17]} Nbd7 {[%emt
0:00:55]} 10. Bd2 {[%emt 0:00:18]} Nc5 {[%emt 0:05:17]} 11. b4 {[%emt 0:05:51]}
Nxd3 {[%emt 0:00:47]} 12. cxd3 {[%emt 0:00:08]} O-O {[%emt 0:11:36]} 13. Rfc1 {
[%emt 0:02:21]} Qd8 {[%emt 0:06:44]} 14. Nb3 {[%emt 0:06:10]} b6 {[%emt 0:04:
32]} 15. Be3 {[%emt 0:05:10]} Bb7 {[%emt 0:00:28]} 16. Na4 {[%emt 0:10:48]} Nd7
{[%emt 0:08:50]} 17. f3 {[%emt 0:01:27]} Bf6 {[%emt 0:14:30]} 18. Rab1 {[%emt
0:00:56]} Rb8 {[%emt 0:10:14]} 19. Rc2 {[%emt 0:08:17]} b5 {[%emt 0:07:22]} 20.
Nc3 {[%emt 0:00:53]} Rc8 {[%emt 0:04:30]} 21. Rbc1 {[%emt 0:03:33]} Bxc3 {
[%emt 0:02:47]} 22. Rxc3 {[%emt 0:00:17]} Rxc3 {[%emt 0:00:04]} 23. Rxc3 {
[%emt 0:00:06]} Qb8 {[%emt 0:00:06]} 24. Na5 {[%emt 0:06:23]} Rc8 {[%emt 0:00:
23]} 25. Qc2 {[%emt 0:00:29]} Kf8 {[%emt 0:06:21]} 26. h3 {[%emt 0:05:45]} e5 {
[%emt 0:00:40]} 27. d4 {[%emt 0:06:34]} Rxc3 {[%emt 0:03:53]} 28. Qxc3 {[%emt
0:00:09]} Qc8 {[%emt 0:00:22]} 29. Qd2 {[%emt 0:02:52]} Ke7 {[%emt 0:02:34]}
30. dxe5 {[%emt 0:04:28]} Nxe5 {[%emt 0:01:06]} 31. Qd4 {[%emt 0:02:06]} Bc6 {
[%emt 0:05:58]} 32. Kh2 {[%emt 0:13:58]} f6 {[%emt 0:00:26]} 33. Bf4 {[%emt 0:
05:58]} Bd7 {[%emt 0:01:20]} 34. Bxe5 {[%emt 0:00:17]} dxe5 {[%emt 0:00:33]}
35. Qe3 {[%emt 0:01:28]} Qc2 {[%emt 0:01:37]} 36. a3 {[%emt 0:01:02]} Qc7 {
[%emt 0:00:37]} 37. Nb3 {[%emt 0:00:24]} Be6 {[%emt 0:00:10]} 38. Nc5 {[%emt 0:
00:34]} Qb6 {[%emt 0:01:13]} 39. f4 {[%emt 0:05:48]} exf4 {[%emt 0:00:16]} 40.
Qxf4 {[%emt 0:00:00]} a5 {[%emt 0:00:00]} 41. e5 {[%emt 0:03:03]} axb4 {[%emt
0:08:41]} 42. axb4 {[%emt 0:02:38]} Kf7 {[%emt 0:07:29]} 43. Ne4 {[%emt 0:03:
03]} Bd7 {[%emt 0:04:26]} 44. Nd6+ {[%emt 0:17:41]} Ke7 {[%emt 0:02:50]} 45.
Qh4 {[%emt 0:00:37]} Qc7 {[%emt 0:06:03]} 46. Qxh7 {[%emt 0:01:29]} fxe5 {
[%emt 0:00:16]} 47. Ne4 {[%emt 0:01:44]} Kf8 {[%emt 0:02:07]} 48. Qh8+ {[%emt
0:00:02]} Kf7 {[%emt 0:00:03]} 49. h4 {[%emt 0:00:36]} Qc1 {[%emt 0:01:29]} 50.
Qh5+ {[%emt 0:00:38]} Ke6 {[%emt 0:01:16]} 51. Nc5+ {[%emt 0:00:57]} Kd6 {
[%emt 0:00:09]} 52. Qg6+ {[%emt 0:01:17]} Kc7 {[%emt 0:00:25]} 53. Qxg7 {[%emt
0:00:50]} Qf4+ {[%emt 0:00:14]} 54. Qg3 {[%emt 0:00:04]} Qd4 {[%emt 0:00:51]}
55. h5 {[%emt 0:00:59]} Bf5 {[%emt 0:01:36]} 56. Qg7+ {[%emt 0:01:12]} Kd6 {
[%emt 0:01:03]} 57. Qf6+ {[%emt 0:00:26]} Kd5 {[%emt 0:00:11]} 58. Qf7+ {[%emt
0:00:12]} Kd6 {[%emt 0:00:29]} 59. Qxf5 {[%emt 0:00:46]} Qh4+ {[%emt 0:00:19]}
60. Qh3 {[%emt 0:00:11]} Qf4+ {[%emt 0:00:10]} 61. Qg3 {[%emt 0:00:08]} Qxb4 {
[%emt 0:00:08]} 62. Qxe5+ {[%emt 0:00:43] Kd5} 1-0

[Event "ETCC Women 2013"]
[Site "Warsaw"]
[Date "2013.11.15"]
[Round "7"]
[White "Ziaziulkina, Nastassia"]
[Black "Zimina, Olga"]
[Result "1-0"]
[ECO "C67"]
[WhiteElo "2350"]
[BlackElo "2338"]
[PlyCount "81"]
[EventDate "2013.??.??"]
[EventCountry "POL"]
[WhiteTeam "Belarus"]
[BlackTeam "Italy"]
[WhiteTeamCountry "BLR"]
[BlackTeamCountry "ITA"]
[TimeControl "40/5400+30:1800+30"]

1. e4 {[%emt 0:00:00]} e5 {[%emt 0:00:00]} 2. Nf3 {[%emt 0:00:00]} Nc6 {[%emt
0:00:00]} 3. Bb5 {[%emt 0:00:00]} Nf6 {[%emt 0:00:00]} 4. O-O {[%emt 0:00:00]}
Nxe4 {[%emt 0:00:00]} 5. Re1 {[%emt 0:00:05]} Nd6 {[%emt 0:00:26]} 6. Nxe5 {
[%emt 0:00:07]} Be7 {[%emt 0:00:55]} 7. Bf1 {[%emt 0:00:19]} Nxe5 {[%emt 0:04:
13]} 8. Rxe5 {[%emt 0:00:08]} O-O {[%emt 0:00:04]} 9. d4 {[%emt 0:00:35]} Ne8 {
[%emt 0:00:34]} 10. d5 {[%emt 0:09:05]} d6 {[%emt 0:00:36]} 11. Re1 {[%emt 0:
00:38]} Nf6 {[%emt 0:08:28]} 12. c4 {[%emt 0:04:47]} Bf5 {[%emt 0:00:37]} 13.
Nc3 {[%emt 0:01:11]} Re8 {[%emt 0:02:41]} 14. Qb3 {[%emt 0:10:13]} Rb8 {[%emt
0:07:52]} 15. Be3 {[%emt 0:08:06]} c5 {[%emt 0:00:22]} 16. h3 {[%emt 0:13:50]}
Bg6 {[%emt 0:14:27]} 17. Rad1 {[%emt 0:05:06]} a6 {[%emt 0:00:37]} 18. a4 {
[%emt 0:02:47]} Nd7 {[%emt 0:03:55]} 19. Bf4 {[%emt 0:04:31]} Qc7 {[%emt 0:02:
48]} 20. Bd3 {[%emt 0:04:42]} Bxd3 {[%emt 0:06:29]} 21. Rxd3 {[%emt 0:00:04]}
Bf6 {[%emt 0:00:16]} 22. Rde3 {[%emt 0:01:07]} Rxe3 {[%emt 0:00:18]} 23. Rxe3 {
[%emt 0:00:47]} Bd4 {[%emt 0:05:07]} 24. Re1 {[%emt 0:05:21]} Be5 {[%emt 0:05:
33]} 25. Bxe5 {[%emt 0:03:20]} Nxe5 {[%emt 0:00:03]} 26. Re3 {[%emt 0:01:02]}
Ng6 {[%emt 0:15:07]} 27. Ne4 {[%emt 0:05:31]} h6 {[%emt 0:00:36]} 28. Re1 {
[%emt 0:04:44]} Kf8 {[%emt 0:09:05]} 29. Qg3 {[%emt 0:02:54]} Re8 {[%emt 0:01:
02]} 30. Re3 {[%emt 0:00:41]} Re5 {[%emt 0:01:28]} 31. f4 {[%emt 0:01:55]} Rf5
{[%emt 0:06:19]} 32. Qe1 {[%emt 0:03:05]} Kg8 {[%emt 0:01:32]} 33. g3 {[%emt 0:
00:34]} b5 {[%emt 0:00:39]} 34. axb5 {[%emt 0:00:36]} axb5 35. b3 {[%emt 0:00:
26]} bxc4 {[%emt 0:01:52]} 36. bxc4 {[%emt 0:00:02]} Qb6 {[%emt 0:00:35]} 37.
Qd1 {[%emt 0:03:01]} Nf8 {[%emt 0:02:34]} 38. Qc2 {[%emt 0:02:52]} g6 {[%emt 0:
00:49]} 39. Rf3 {[%emt 0:00:22]} Qb4 {[%emt 0:00:57]} 40. g4 {[%emt 0:00:00]}
Qe1+ {[%emt 0:00:00]} 41. Kg2 {[%emt 0:02:00]} 1-0

[Event "ETCC Open 2013"]
[Site "Warsaw"]
[Date "2013.11.15"]
[Round "7"]
[White "Fridman, Daniel"]
[Black "Yilmaz, Mustafa"]
[Result "0-1"]
[ECO "D15"]
[WhiteElo "2600"]
[BlackElo "2577"]
[PlyCount "150"]
[EventDate "2013.??.??"]
[EventCountry "POL"]
[WhiteTeam "Germany"]
[BlackTeam "Turkey"]
[WhiteTeamCountry "GER"]
[BlackTeamCountry "TUR"]
[TimeControl "40/5400+30:1800+30"]

1. d4 {[%emt 0:00:00]} d5 {[%emt 0:00:00]} 2. c4 {[%emt 0:00:00]} c6 {[%emt 0:
00:00]} 3. Nf3 {[%emt 0:00:00]} Nf6 {[%emt 0:00:00]} 4. Nc3 {[%emt 0:00:00]} a6
{[%emt 0:00:00]} 5. e3 {[%emt 0:00:04]} Bf5 {[%emt 0:00:03]} 6. Bd3 {[%emt 0:
00:07]} Bxd3 {[%emt 0:00:24]} 7. Qxd3 {[%emt 0:00:07]} e6 {[%emt 0:00:39]} 8.
O-O {[%emt 0:00:08]} Nbd7 {[%emt 0:01:29]} 9. Rd1 {[%emt 0:02:27]} Be7 {[%emt
0:08:38]} 10. e4 {[%emt 0:01:21]} dxe4 {[%emt 0:02:03]} 11. Nxe4 {[%emt 0:01:
06]} Nxe4 {[%emt 0:01:32]} 12. Qxe4 {[%emt 0:00:09]} O-O {[%emt 0:00:08]} 13.
Bf4 {[%emt 0:00:10]} Re8 {[%emt 0:08:55]} 14. Rd3 {[%emt 0:05:01]} Qa5 {[%emt
0:05:44]} 15. Rb3 {[%emt 0:05:34]} Nf6 {[%emt 0:02:21]} 16. Qc2 {[%emt 0:07:17]
} b5 {[%emt 0:06:34]} 17. Ne5 {[%emt 0:03:15]} Rac8 {[%emt 0:09:15]} 18. c5 {
[%emt 0:19:08]} Qd8 {[%emt 0:05:32]} 19. Rd1 {[%emt 0:00:12]} Qd5 {[%emt 0:01:
32]} 20. Ra3 {[%emt 0:07:09]} Ra8 {[%emt 0:04:18]} 21. Rh3 {[%emt 0:00:13]}
Rac8 {[%emt 0:09:48]} 22. Ra3 {[%emt 0:07:46]} Ra8 {[%emt 0:00:12]} 23. Rh3 {
[%emt 0:04:03]} Rac8 {[%emt 0:00:59]} 24. Ng4 {[%emt 0:11:17]} Qf5 {[%emt 0:07:
30]} 25. Qxf5 {[%emt 0:06:22]} exf5 {[%emt 0:00:02]} 26. Nxf6+ {[%emt 0:00:58]}
Bxf6 {[%emt 0:00:18]} 27. Rhd3 {[%emt 0:03:19]} a5 {[%emt 0:14:25]} 28. Kf1 {
[%emt 0:03:03]} g5 {[%emt 0:03:48]} 29. Bd6 {[%emt 0:04:51]} Kg7 {[%emt 0:00:
33]} 30. f3 {[%emt 0:04:01]} Kg6 {[%emt 0:00:28]} 31. Re1 {[%emt 0:02:20]} Re6
{[%emt 0:01:20]} 32. b3 {[%emt 0:01:36]} Rce8 {[%emt 0:01:09]} 33. Bg3 {[%emt
0:01:04]} f4 {[%emt 0:01:00]} 34. Bf2 {[%emt 0:00:06]} Rd8 {[%emt 0:00:12]} 35.
Red1 {[%emt 0:01:20]} Rd5 {[%emt 0:00:11]} 36. R1d2 {[%emt 0:00:42]} Kf5 {
[%emt 0:01:38]} 37. Re2 {[%emt 0:00:30]} Rd7 {[%emt 0:02:25]} 38. Ke1 {[%emt 0:
01:12]} Rde7 {[%emt 0:02:17]} 39. Rdd2 {[%emt 0:00:09]} Rd7 {[%emt 0:00:56]}
40. Kd1 {[%emt 0:00:00]} Rd5 {[%emt 0:00:00]} 41. a3 {[%emt 0:05:13]} h5 {
[%emt 0:04:13]} 42. h3 {[%emt 0:01:15]} g4 {[%emt 0:04:29]} 43. hxg4+ {[%emt 0:
07:23]} hxg4 {[%emt 0:00:08]} 44. fxg4+ {[%emt 0:00:02]} Kxg4 {[%emt 0:00:13]}
45. Rd3 {[%emt 0:00:14]} Kf5 {[%emt 0:01:47]} 46. Red2 {[%emt 0:00:34]} Re8 {
[%emt 0:06:59]} 47. Rh3 {[%emt 0:02:26]} Red8 {[%emt 0:05:16]} 48. Rh5+ {[%emt
0:05:11]} Bg5 {[%emt 0:03:27]} 49. Rh3 {[%emt 0:03:26]} Kg6 {[%emt 0:02:46]}
50. Rf3 {[%emt 0:00:36]} Bf6 {[%emt 0:00:53]} 51. Rfd3 {[%emt 0:06:39]} Kf5 {
[%emt 0:00:10]} 52. Kc2 {[%emt 0:00:05]} Rg8 {[%emt 0:02:21]} 53. Be1 {[%emt 0:
00:11]} Rg4 {[%emt 0:00:48]} 54. Re2 {[%emt 0:02:51]} Bxd4 {[%emt 0:01:30]} 55.
Bxa5 {[%emt 0:00:04]} Rxc5+ {[%emt 0:00:30]} 56. Kb1 {[%emt 0:00:23]} Re5 {
[%emt 0:00:48]} 57. Rc2 {[%emt 0:00:22]} c5 {[%emt 0:00:42]} 58. a4 {[%emt 0:
01:50]} b4 {[%emt 0:02:08]} 59. Bxb4 {[%emt 0:00:10]} Ke4 {[%emt 0:00:06]} 60.
Rxd4+ {[%emt 0:01:17]} cxd4 {[%emt 0:00:08]} 61. a5 {[%emt 0:01:06]} Rb5 {
[%emt 0:00:42]} 62. Be1 {[%emt 0:00:47]} Rxb3+ {[%emt 0:00:16]} 63. Ka2 {[%emt
0:00:01]} Re3 {[%emt 0:01:01]} 64. Bb4 {[%emt 0:00:08]} d3 {[%emt 0:00:42]} 65.
Rc4+ {[%emt 0:00:06]} Kd5 {[%emt 0:00:07]} 66. Rc5+ {[%emt 0:00:11]} Kd4 {
[%emt 0:00:07]} 67. Kb3 {[%emt 0:00:12]} Rxg2 {[%emt 0:00:40]} 68. Rc4+ {[%emt
0:00:16]} Kd5 {[%emt 0:00:53]} 69. Rc5+ {[%emt 0:00:31]} Ke4 {[%emt 0:00:36]}
70. Rc4+ {[%emt 0:00:15]} Kf3 {[%emt 0:00:34]} 71. Rd4 {[%emt 0:00:10]} Re4 {
[%emt 0:01:05]} 72. Rd7 {[%emt 0:00:26]} Ke2 {[%emt 0:00:31]} 73. Bc3 {[%emt 0:
00:09]} f3 {[%emt 0:00:13]} 74. a6 {[%emt 0:00:23]} f2 {[%emt 0:00:18]} 75. a7
{[%emt 0:00:04]} Rg8 {[%emt 0:00:22]} 0-1